Cogmind - Beta 12 @@@ ROGUE MODE // 2023.03.05 @ 15:43:06 Player: Eddie Result: Destroyed by as-70590 with Assembled Heavy Rifle Performance ------------- Evolutions (0) 0 Regions Visited (4) 800 Robots Destroyed (19) 95 Value Destroyed (330) 330 Prototype IDs (2) 40 Alien Tech Used (0) 0 Bonus (300) 300 TOTAL SCORE: 1565 Bonus ------- Aligned with FarCom 300 Cogmind --------- Core Integrity 0/250 Matter 273/300 Energy 100/100 System Corruption 0% Temperature Cool (0) Movement Walking (120) Location -9/Mines Parts ------- > --- POWER (1) -------- (None) > --- PROPULSION (2) --- Aluminum Leg Aluminum Leg > --- UTILITY (2) ------ Medium Storage Unit Supersonic Drone Bay (1/1) > --- WEAPON (2) ------- (None) > --- INVENTORY (10) --- Aluminum Leg Aluminum Leg High-capacity Storage Unit Visual Processing Unit Assault Rifle Assault Rifle Maul Stasis Trap (100%) Stasis Trap (100%) Peak State ------------ > --- POWER ------------ Ion Engine > --- PROPULSION ------- Aluminum Leg Aluminum Leg > --- UTILITY ---------- Medium Storage Unit Supersonic Drone Bay > --- WEAPON ----------- Medium Laser Bore Cannon > --- INVENTORY -------- Aluminum Leg Aluminum Leg High-capacity Storage Unit Visual Processing Unit Assault Rifle Assault Rifle Maul Stasis Trap Stasis Trap [Rating: 19] Favorites ----------- Power Ion Engine Engine Ion Engine Propulsion Aluminum Leg Leg Aluminum Leg Utility Medium Storage Unit Device Supersonic Drone Bay Storage Medium Storage Unit Weapon Medium Laser Energy Gun Medium Laser Ballistic Cannon Bore Cannon Build | -11 -10 -10 -10 -9 ------- Run | Jun Mat Min Exi Min Slots Evolved . | . . . . . Power . | . . . . . Propulsion . | . . . . . Utility . | . . . . . Weapon . | . . . . . Parts Attached 14 | 6 6 . . 2 Power 2 | 1 1 . . . Engine 2 | 1 1 . . . Core . | . . . . . Reactor . | . . . . . Propulsion 3 | 2 1 . . . Treads . | . . . . . Leg 3 | 2 1 . . . Wheel . | . . . . . Hover . | . . . . . Flight . | . . . . . Utility 5 | 1 3 . . 1 Device 1 | . . . . 1 Storage 4 | 1 3 . . . Processor . | . . . . . Hackware . | . . . . . Protection . | . . . . . Artifact . | . . . . . Weapon 4 | 2 1 . . 1 Energy Gun 3 | 2 1 . . . Energy Cannon . | . . . . . Ballistic Gun . | . . . . . Ballistic Cannon 1 | . . . . 1 Launcher . | . . . . . Special Weapon . | . . . . . Impact Weapon . | . . . . . Slashing Weapon . | . . . . . Piercing Weapon . | . . . . . Special Melee Weapon . | . . . . . Unidentified Prototypes 2 | . . . 1 1 Parts Lost 3 | . . . . 3 Power 1 | . . . . 1 Propulsion . | . . . . . Utility . | . . . . . Weapon 2 | . . . . 2 Highest Loss Streak 3 | . . . . 3 To Critical Strikes . | . . . . . Average Slot Usage (%) 85 | . 84 85 85 92 Engine 14 | . 14 14 14 14 Leg 27 | . 27 28 28 28 Device 1 | . . . . 11 Storage 14 | . 14 14 14 14 Energy Gun 26 | . 27 28 28 20 Naked Turns . | . . . . . Heaviest Build 27 | 12 19 19 19 27 Greatest Support 20 | 20 20 20 20 20 Greatest Overweight (x) 1 | . . . . 1 Average Overweight (x) . | . . . . . Largest Inventory Capacity 20 | 8 20 10 10 10 Average Capacity 9 | 7 9 10 10 10 Most Carried 10 | 4 8 8 10 10 Average Carried 7 | . 5 8 8 9 Final Capacity 10 | 8 10 10 10 10 Final Carried 9 | . 8 8 9 9 Class Distribution -------------------- 100% | Mutant Dominant Class ---------------- Mutant | -10/Materials Mutant | -10/Mines Mutant | -10/Exiles Mutant | -9/Mines Resources | -11 -10 -10 -10 -9 ----------- Run | Jun Mat Min Exi Min Matter Collected 404 | 223 144 . . 37 Remotely . | . . . . . Salvage Created 605 | . 572 . . 33 Parts 34 | . 31 . . 3 Haulers Intercepted 1 | . 1 . . . Recyclers Shooed . | . . . . . Parts Field Recycled . | . . . . . Retrieved Matter . | . . . . . Parts Self-Destructed . | . . . . . Prevented . | . . . . . Kills | -11 -10 -10 -10 -9 ------- Run | Jun Mat Min Exi Min Combat Hostiles Destroyed 15 | . 12 . . 3 Guns 12 | . 11 . . 1 Cannons 2 | . . . . 2 Classes Destroyed 6 | . 5 . . 1 Hauler 1 | . 1 . . . Recycler 2 | . 2 . . . Watcher 2 | . 2 . . . Swarmer 8 | . 6 . . 2 Grunt 6 | . 6 . . . Assembled 1 | . . . . 1 Best Kill Streak 4 | . 4 . . 2 Combat Bots Only 3 | . 3 . . 2 Max Kills in Single Turn 1 | . 1 . . 1 Gunslinging . | . . . . . Exploded . | . . . . . Melee . | . . . . . Uniques/NPCs Destroyed . | . . . . . Combat | -11 -10 -10 -10 -9 -------- Run | Jun Mat Min Exi Min Damage Taken 990 | . 361 . . 629 Core 262 | . 60 . . 202 Absorbed by Shields . | . . . . . Regen/Repaired (Parts) 73 | . 73 . . . Core Remaining (%) 100 | 100 . . . . Volleys Fired 58 | 1 45 . 5 7 Largest 2 | 2 2 . 2 2 Hottest 107 | 100 100 . 100 107 Shots Fired 116 | 2 90 . 10 14 Gun 109 | 2 90 . 10 7 Cannon 7 | . . . . 7 Launcher . | . . . . . Special . | . . . . . Kinetic 7 | . . . . 7 Thermal 109 | 2 90 . 10 7 Explosive . | . . . . . Electromagnetic . | . . . . . Robot Hit Streak 10 | . 10 . . 2 Robot Miss Streak 3 | . 3 . . 3 Penetration Max . | . . . . . Secondary Targets . | . . . . . Shots Hit Robots 63 | . 57 . . 6 Core Hits 30 | . 26 . . 4 Critical Kills 1 | . . . . 1 Critical Parts Destroyed 2 | . . . . 2 Critical Strikes 8 | . 5 . . 3 Burn 5 | . 5 . . . Destroy 3 | . . . . 3 Melee Attacks . | . . . . . Impact . | . . . . . Slashing . | . . . . . Piercing . | . . . . . Sneak Attacks . | . . . . . Combat Hostiles . | . . . . . Follow-up Attacks . | . . . . . Damage Inflicted 855 | . 724 . . 131 Guns 774 | . 724 . . 50 Cannons 81 | . . . . 81 Explosions . | . . . . . Melee . | . . . . . Ramming . | . . . . . Kinetic 81 | . . . . 81 Thermal 774 | . 724 . . 50 Explosive . | . . . . . Electromagnetic . | . . . . . Impact . | . . . . . Slashing . | . . . . . Piercing . | . . . . . Highest Corruption . | . . . . . Average Corruption . | . . . . . Corruption Purged . | . . . . . Corruption Blocked . | . . . . . Overload Shots . | . . . . . Overflow Damage . | . . . . . Projectiles . | . . . . . Explosions . | . . . . . Melee . | . . . . . Knockbacks 1 | . . . . 1 Impact . | . . . . . Kinetic 1 | . . . . 1 Secondary . | . . . . . Self-Inflicted Damage . | . . . . . Shots . | . . . . . Rammed . | . . . . . Targets Rammed . | . . . . . Kicked . | . . . . . Crushed . | . . . . . Highest Temperature 358 | 39 358 . 117 180 Average Temperature 92 | 26 101 . 52 71 Received Heat Transfer 146 | . 126 . . 20 Effects 3 | . 3 . . . Shutdowns 2 | . 2 . . . Matter Decay 1 | . 1 . . . Siege Activations . | . . . . . Robots Corrupted . | . . . . . Combat Hostiles . | . . . . . Parts Fried . | . . . . . Impact Corruptions . | . . . . . Robots Melted 1 | . 1 . . . Combat Hostiles 1 | . 1 . . . Parts Melted 7 | . 6 . . 1 Heat Transferred 2664 | . 2516 . . 148 Parts Sabotaged . | . . . . . Parts Stolen . | . . . . . Parts Stripped . | . . . . . Power Chain Reactions . | . . . . . Missiles Intercepted . | . . . . . Alert | -11 -10 -10 -10 -9 ------- Run | Jun Mat Min Exi Min Peak Influence 269 | . 269 42 . 82 Initial 42 | . . 42 . . Average 101 | . 138 42 . 14 Maximum Alert Level 1 | . 1 . . . Low Security (%) 85 | 100 79 100 . 100 Level 1 14 | . 20 . . . Level 2 . | . . . . . Level 3 . | . . . . . Level 4 . | . . . . . Level 5 . | . . . . . High Security . | . . . . . Max Security . | . . . . . Squads Dispatched 6 | . 6 . . . Investigation 3 | . 3 . . . Extermination . | . . . . . Reinforcement 3 | . 3 . . . Assault . | . . . . . Garrison . | . . . . . Intercept . | . . . . . Searches Triggered . | . . . . . Construction Impeded . | . . . . . Haulers Reinforced . | . . . . . Active Scanning Responses . | . . . . . Cargo Convoy Interrupts . | . . . . . Stealth | -11 -10 -10 -10 -9 --------- Run | Jun Mat Min Exi Min Distress Signals 2 | . 2 . . . Communications Jammed . | . . . . . Distress Signals . | . . . . . Times Spotted 41 | . 19 . . 22 Peak Tracking Total 12 | . 3 . . 12 Tactical Retreats 4 | . 2 . . 2 Traps | -11 -10 -10 -10 -9 ------- Run | Jun Mat Min Exi Min Traps Triggered 1 | . 1 . . . Indirectly . | . . . . . Trap Hack Attempts . | . . . . . Triggered . | . . . . . Disarmed . | . . . . . Reprogrammed . | . . . . . Reused . | . . . . . Traps Extracted . | . . . . . Installed 1 | . . . . 1 Triggered . | . . . . . Most Traps Carried 2 | . . . . 2 Machines | -11 -10 -10 -10 -9 ---------- Run | Jun Mat Min Exi Min Machines Disabled . | . . . . . Max in Single Turn . | . . . . . Machines Repaired . | . . . . . Machines Sabotaged . | . . . . . Overloaded Fab Kills . | . . . . . Hacking | -11 -10 -10 -10 -9 --------- Run | Jun Mat Min Exi Min Machines Accessed 7 | . 5 . 2 . Terminals 2 | . 2 . . . Fabricators . | . . . . . Repair Stations 1 | . 1 . . . Recycling Units 2 | . 2 . . . Scanalyzers . | . . . . . Garrison Access . | . . . . . Total Hacks 47 | . 15 . 32 . Successful 41 | . 9 . 32 . Failed 6 | . 6 . . . Catastrophic 3 | . 3 . . . Database Lockouts . | . . . . . Manual 1 | . . . 1 . Terminals 5 | . 5 . . . Fabricators . | . . . . . Repair Stations 6 | . 6 . . . Recycling Units 4 | . 4 . . . Scanalyzers . | . . . . . Garrison Access . | . . . . . Terminal Hacks 34 | . 2 . 32 . Record 32 | . . . 32 . Recall Investigation 1 | . 1 . . . Registered Components 1 | . 1 . . . Fabricator Hacks . | . . . . . Repair Station Hacks 5 | . 5 . . . Scan Component 3 | . 3 . . . Repair 2 | . 2 . . . Recycling Unit Hacks 2 | . 2 . . . Report Inventory 2 | . 2 . . . Scanalyzer . | . . . . . Garrison Access Hacks . | . . . . . Unauthorized Hacks . | . . . . . Terminals . | . . . . . Fabricators . | . . . . . Repair Stations . | . . . . . Recycling Units . | . . . . . Scanalyzers . | . . . . . Garrison Access . | . . . . . Data Cores Recovered . | . . . . . Used . | . . . . . Hacking Detections 4 | . 4 . . . Full Trace Events 2 | . 2 . . . Feedback Events . | . . . . . Feedback Blocked . | . . . . . Robot Schematics Acquired . | . . . . . Robots Built . | . . . . . Authchips . | . . . . . Time . | . . . . . Total Robot Build Rating . | . . . . . Part Schematics Acquired . | . . . . . Parts Built . | . . . . . Authchips . | . . . . . Time . | . . . . . Total Part Build Rating . | . . . . . Parts Repaired 2 | . 2 . . . Time 62 | . 62 . . . Parts Recycled . | . . . . . Recycled Matter . | . . . . . Retrieved Matter . | . . . . . Retrieved Components . | . . . . . Parts Scanalyzed . | . . . . . Part Schematics Acquired . | . . . . . Parts Damaged . | . . . . . Bothacking | -11 -10 -10 -10 -9 ------------ Run | Jun Mat Min Exi Min Used RIF Installer . | . . . . . Robots Hacked . | . . . . . Non-combat . | . . . . . Combat . | . . . . . Robot Hacks Applied . | . . . . . Relay Couplers Released . | . . . . . Fabnet Peak Effective % . | . . . . . Robots Rewired . | . . . . . Allies Hacked . | . . . . . Hacks Repelled . | . . . . . Allies | -11 -10 -10 -10 -9 -------- Run | Jun Mat Min Exi Min Total Allies . | . . . . . Largest Group . | . . . . . Highest-Rated Group . | . . . . . Highest-Rated Ally . | . . . . . Total Orders . | . . . . . Ally Attacks . | . . . . . Total Damage . | . . . . . Kills . | . . . . . Allies Corrupted . | . . . . . Allies Melted . | . . . . . Intel | -11 -10 -10 -10 -9 ------- Run | Jun Mat Min Exi Min Robot Analysis Total . | . . . . . Derelict Logs Recovered 1 | . . 1 . . Drone Launches 1 | . . . . 1 Drone Recoveries 1 | . . . . 1 Exploration | -11 -10 -10 -10 -9 ------------- Run | Jun Mat Min Exi Min Turns Passed 2174 | 53 942 50 834 295 Spaces Moved 1472 | 34 518 40 670 210 Core 5 | 5 . . . . Treads . | . . . . . Legs 1467 | 29 518 40 670 210 Wheels . | . . . . . Hover . | . . . . . Flight . | . . . . . Fastest Speed 50 | 50 120 120 120 120 Average Speed 120 | 109 120 120 120 126 Slowest Speed 190 | 120 120 120 120 190 Overloaded Moves . | . . . . . Propulsion Burnouts . | . . . . . Robots Hopped . | . . . . . Cave-ins Triggered . | . . . . . Time Travels 1 | . . . 1 . Exploration Rate (%) 42 | 3 67 8 91 43 Regions Visited 4 Branch Regions 3 Pre-discovered Areas 3 | . . 1 1 1 Known Exits Taken . | . . . . . Unknown Exits Taken 4 | 1 1 1 1 . Scrap Searched 2 | . . 1 . 1 Spaces Dug . | . . . . . Terrain Destroyed 3 | . . . . 3 Melee . | . . . . . Projectile 3 | . . . . 3 AOE . | . . . . . Terrain Rammed . | . . . . . Walls Destroyed . | . . . . . Machines Disabled . | . . . . . Actions | -11 -10 -10 -10 -9 --------- Run | Jun Mat Min Exi Min Total 1753 | 47 748 42 690 226 Wait 183 | 1 164 3 14 1 Move 1468 | 33 517 39 669 210 Hop . | . . . . . Pick Up 24 | 6 13 . 2 3 Fast Attach . | . . . . . Attach 10 | 6 2 . . 2 Detach . | . . . . . Swap 4 | . 4 . . . Drop 5 | . 3 . . 2 Fire 58 | 1 45 . 5 7 Melee . | . . . . . Ram . | . . . . . Kick . | . . . . . Crush . | . . . . . Escape Stasis . | . . . . . Rewire . | . . . . . Trap 1 | . . . . 1 Miscellaneous . | . . . . . Route ------- -11/Junkyard -10/Materials (discovered 2 exits: [*Mat] / [*Min]) -10/Mines (discovered 2 exits: [*Mat] / *Exi) -10/Exiles (discovered 2 exits: [*Min x2]) -9/Mines History --------- Turn | Location | Event 35 | -11/Junkyard | Discovered new exit (range 12) 54 | -11/Junkyard | Entered Materials 229 | -10/Materials | Discovered new exit (range 15) 300 | -10/Materials | Build established: Mutant 323 | -10/Materials | Discovered new exit (range 11) 679 | -10/Materials | Repaired Aluminum Leg 728 | -10/Materials | Repaired Broken Med. Laser 996 | -10/Materials | Entered Mines 1020 | -10/Mines | Discovered new exit (range 9) 1028 | -10/Mines | Learned location of Storage (-7) 1041 | -10/Mines | Deemed a non-threat by the Exiles lab entrance 1041 | -10/Mines | Discovered new exit (range 5) 1046 | -10/Mines | Entered Exiles 1078 | -10/Exiles | Discovered new exit (range 15) 1134 | -10/Exiles | Met 8R-AWN 1153 | -10/Exiles | Met EX-HEX 1201 | -10/Exiles | Met EX-DEC 1255 | -10/Exiles | Visited The Gauntlet 1409 | -10/Exiles | Learned location of Zion (-7) 1459 | -10/Exiles | Discovered new exit (range 14) 1529 | -10/Exiles | Met EX-BIN 1553 | -10/Exiles | Aligned with FarCom system 1554 | -10/Exiles | Given EX-Vault access code 1597 | -10/Exiles | Opened EX-Vault 1603 | -10/Exiles | Found Prototype Device 1606 | -10/Exiles | Found Prototype Device 1609 | -10/Exiles | Identified Chronowheel 1609 | -10/Exiles | Activated Chronowheel 1609 | -10/Exiles | Spacetime reconverged on an earlier point 1634 | -10/Exiles | Warned to stay clear of 0b10 Research branches 1880 | -10/Exiles | Left Exiles lab with Supersonic Drone Bay 1880 | -10/Exiles | Entered Mines 1927 | -9/Mines | Found a hidden stash of uninstalled traps 1932 | -9/Mines | Identified Supersonic Drone Bay 2028 | -9/Mines | A weapon hastily lodged in a ceiling crevice suddenly fell to the ground 2122 | -9/Mines | Assembled infested the area 2127 | -9/Mines | Assisted by a Guerilla fighting off Assembled 2149 | -9/Mines | Core integrity fell below 50% 2173 | -9/Mines | Core integrity fell below 20% 2175 | -9/Mines | Destroyed by as-70590 with Assembled Heavy Rifle Last Messages --------------- C-30 ARC bursts open, deploying its payload. D-53 Grenadier unfolds itself. HV Slug penetrates D-53 Grenadier. D-53 Grenadier suffers critical hit (Destroy). Destroyed Lgt. Deuterium Engine. The unstable cave ceiling collapses. Bore Cannon destroyed. The unstable cave ceiling collapses. Med. Laser destroyed. U-05 Engineer lays Concrete. The unstable cave ceiling collapses. U-05 Engineer lays Concrete. The unstable cave ceiling collapses. U-05 Engineer lays Concrete. The unstable cave ceiling collapses. U-05 Engineer lays Concrete. as-45774 destroyed. U-05 Engineer lays Concrete. K-01 Serf destroyed. Ion Engine destroyed. Map ----- +----------------------------------------------------+ | ##????????# #???????????????????????????????????? | | #?????????# #???????????????????????????????????? | | #?????????# #???????????????????????????????????? | | #?????????# ##?###??????????????????????????????? | | #?????????# ## ##?????????????????????????????? | | #?????????# ##????????????????????????????? | | ##????????## ##??????##???????????????????? | | ########??# """ #### #???????????????????? | | #?## """ ????????????????????? | | ###### ### """ ??????????????????????? | | ##????# % " ###### ???????????????????????? | | #?????# % "%##?????????????????????????????? | | ??????###### =% ##??????????????????????????????? | | ??????????# =* ##??????????????????????????????? | | ??????????# #??????????????????????????????? | | ???????#### #??????????????????????????????? | | ????#?## #??????????????????????????????? | | ???## # ##??????????????????????????????? | | ??## ##?????????????????????????????? | | ### #?????????????????????????????? | | #?????????????????????????????? | | # #?????????????????????????????? | | ###????????????????????????????? | | ?# #????????????????????????????? | | ##### #??## # ##??####??????????????????????? | | ????# ????# #??## @##?????????????????????? | | ????# ????#### ####### #?????????????????????? | | ????#????????# d#???# #?????????????????????? | | ?????????????# d##### #?????????????????????? | | ?????????????# ssa #?????????????????????? | | ?????????????# [ a% #????????????????????? | | ?????????????#########%=a #???????????????????? | | ?????????????????????=aaa #???????????????????? | | ???????????????????? !]! a ##???????????????????? | | ???????????????????? % #$ #????????????????????? | | ???????????????????# #### #????????????????????? | | ???????????????????###???? #????????????????????? | | ?????????????????????????? #????????????????????? | | ?????????????????????????? #????????????????????? | | ?????????????????????????? ????????????????????? | | ??????????????????????????##?????????????????????? | | ?????????????????????????????????????????????????? | | ?????????????????????????????????????????????????? | | ?????????????????????????????????????????????????? | | ?????????????????????????????????????????????????? | | ?????????????????????????????????????????????????? | | ?????????????????????????????????????????????????? | | ?????????????????????????????????????????????????? | | ?????????????????????????????????????????????????? | | | +----------------------------------------------------+ Best States ------------- Heat Dissipation 25 Energy Generation 10 Energy Capacity 250 Matter Stores 300 Matter Capacity 300 Sight Range 16 Terrain Scan Density 10 Evasion (%) 55 Item Schematics ----------------- None Robot Schematics ------------------ None Fabricated ------------ Nothing Alien Tech Used ----------------- None Achievements -------------- Tourist Challenges ------------ None Game ------ Seed ColdRecoilSegregator Manual? 0 Play Time 00:29:22 Cumulative 7.1 hours Start 2023.03.04 @ 08:01:15 End 2023.03.05 @ 15:43:06 Sessions 3 Manual Loads 0 Difficulty Rogue Special Mode None Game No. 12 Rogue 12 Adventurer 0 Explorer 0 Win Type - Total 0 Types 0/0/0/0/0/0/0/0/0 Lore% 10 Gallery% 15 Achievement% 14 Wizard Run 0 Options --------- ASCII 0 Keyboard 0 Movement Mouse Keybinds 0 Fullscreen 1 Font 18/Smallcaps Map View 76x50 Tactical HUD 0 Map Filters NONE Filters NONE Steam 1 RUN: 4b44a2f2-091b-4968-b3d1-e524ea52592c